Cogmind - Beta 13 @@@ ROGUE MODE // 2024.04.07 @ 22:34:54 Player: Patryk Z Result: Destroyed by S-10 Pest with Light Assault Rifle Performance ------------- Evolutions (2) 1000 Regions Visited (6) 1200 Robots Destroyed (39) 195 Value Destroyed (1218) 1218 Prototype IDs (1) 20 Alien Tech Used (0) 0 Bonus (157) 157 TOTAL SCORE: 3790 Bonus ------- High Alert Combat Kills 46 Follower Combat Kills 111 Cogmind --------- Core Integrity 0/550 Matter 178/300 Energy 240/240 System Corruption 0% Temperature Warning (300) Movement Flying (272) Ox3 Location -8/Storage Parts ------- > --- POWER (1) -------- Nuclear Core > --- PROPULSION (2) --- Cesium-ion Thruster Cesium-ion Thruster > --- UTILITY (2) ------ Reflective Plating > --- WEAPON (6) ------- Enhanced Autogun Enhanced Autogun Improved Light Cannon Assault Cannon Assault Cannon Assault Cannon > --- INVENTORY (5) ---- Nuclear Core Nuclear Core Enhanced Autogun Enhanced Autogun Peak State ------------ > --- POWER ------------ Nuclear Core > --- PROPULSION ------- Cesium-ion Thruster Cesium-ion Thruster > --- UTILITY ---------- Reflective Plating > --- WEAPON ----------- Enhanced Autogun Enhanced Autogun Improved Light Cannon Assault Cannon Assault Cannon Assault Cannon > --- INVENTORY -------- Light Ion Engine Nuclear Core Nuclear Core Nuclear Core [Rating: 32] Favorites ----------- Power Nuclear Core Engine Ion Engine Power Core Nuclear Core Propulsion Aluminum Leg Treads Light Treads Leg Aluminum Leg Wheel Wheel Flight Unit Cesium-ion Thruster Utility Small Storage Unit Device ECM Suite Storage Small Storage Unit Protection Reflective Plating Weapon Mace Energy Gun EM Pulse Gun Ballistic Gun Heavy Assault Rifle Ballistic Cannon Assault Cannon Launcher Grenade Launcher Impact Weapon Mace Build | -11 -10 -10 -10 -9 -8 -8 ------- Run | Yrd Mat Min Exi Min Mat Sto Slots Evolved 4 | . . . . . 4 . Power . | . . . . . . . Propulsion . | . . . . . . . Utility . | . . . . . . . Weapon 4 | . . . . . 4 . Parts Attached 42 | 5 6 2 . 2 11 16 Power 8 | . 1 . . 1 2 4 Engine 1 | . 1 . . . . . Core 7 | . . . . 1 2 4 Reactor . | . . . . . . . Propulsion 10 | 2 . . . 1 2 5 Treads 1 | . . . . . . 1 Leg 6 | 2 . . . 1 2 1 Wheel 1 | . . . . . . 1 Hover . | . . . . . . . Flight 2 | . . . . . . 2 Utility 4 | 1 1 . . . 1 1 Device 2 | . 1 . . . 1 . Storage 1 | 1 . . . . . . Processor . | . . . . . . . Hackware . | . . . . . . . Protection 1 | . . . . . . 1 Artifact . | . . . . . . . Weapon 20 | 2 4 2 . . 6 6 Energy Gun 7 | 2 2 2 . . 1 . Energy Cannon . | . . . . . . . Ballistic Gun 5 | . . . . . 3 2 Ballistic Cannon 4 | . . . . . . 4 Launcher 2 | . 2 . . . . . Special Weapon . | . . . . . . . Impact Weapon 2 | . . . . . 2 . Slashing Weapon . | . . . . . . . Piercing Weapon . | . . . . . . . Special Melee Weapon . | . . . . . . . Unidentified Prototypes 1 | . . . . . . 1 Parts Lost 18 | . . . . 1 6 11 Power 3 | . . . . . 1 2 Propulsion 6 | . . . . . 3 3 Utility 2 | . . . . . . 2 Weapon 7 | . . . . 1 2 4 Highest Loss Streak 5 | . . . . 1 4 5 To Critical Strikes . | . . . . . . . Average Slot Usage (%) 76 | . 85 97 100 93 83 55 Engine 4 | . 10 14 14 9 . . Core 5 | . . . . 4 6 9 Leg 16 | . 28 28 28 28 17 4 Flight 2 | . . . . . . 5 Device 7 | . 11 14 14 14 9 2 Storage 9 | . 14 14 14 14 9 4 Protection 1 | . . . . . . 3 Energy Gun 9 | . 12 24 28 21 9 . Ballistic Gun 6 | . . . . . 15 7 Ballistic Cannon 1 | . . . . . . 3 Launcher 1 | . 7 2 . . . . Impact Weapon 8 | . . . . . 16 13 Naked Turns . | . . . . . . . Heaviest Build 36 | 9 16 16 16 16 27 36 Greatest Support 31 | 20 20 20 20 20 31 21 Greatest Overweight (x) 5 | 2 . . . . 1 5 Average Overweight (x) . | . . . . . . 1 Largest Inventory Capacity 8 | 8 8 8 8 8 8 8 Average Capacity 7 | 7 8 8 8 8 8 6 Most Carried 8 | 3 5 3 1 3 5 8 Average Carried 3 | 1 2 1 1 1 3 5 Final Capacity 8 | 8 8 8 8 8 8 5 Final Carried 4 | 2 3 1 1 3 2 4 Class Distribution -------------------- 75% | Mutant 15% | Gunner 4% | Scavenger-Gunner 4% | Executioner Dominant Class ---------------- Mutant | -10/Materials Mutant | -10/Mines Mutant | -10/Exiles Mutant | -9/Mines Gunner | -8/Materials Mutant | -8/Storage Resources | -11 -10 -10 -10 -9 -8 -8 ----------- Run | Yrd Mat Min Exi Min Mat Sto Matter Collected 978 | 250 50 8 . 156 237 277 Remotely . | . . . . . . . Salvage Created 1248 | . 50 35 . 170 90 903 Parts 60 | . 8 1 . 13 5 33 Haulers Intercepted 1 | . . . . . . 1 Recyclers Shooed 3 | . 1 . . . 1 1 Parts Field Recycled . | . . . . . . . Retrieved Matter . | . . . . . . . Parts Self-Destructed . | . . . . . . . Prevented . | . . . . . . . Kills | -11 -10 -10 -10 -9 -8 -8 ------- Run | Yrd Mat Min Exi Min Mat Sto Combat Hostiles Destroyed 29 | . 3 2 . 6 2 16 Melee 4 | . . . . . . 4 Guns 13 | . . . . 4 2 7 Cannons 1 | . . . . . . 1 AOE 7 | . 3 2 . 2 . . Classes Destroyed 11 | . 3 1 . . 1 6 Worker 3 | . . . . . . 3 Hauler 1 | . . . . . . 1 Recycler 1 | . 1 . . . . . Mechanic 1 | . . . . . . 1 Operator 1 | . . . . . . 1 Watcher 3 | . 2 . . . . 1 Swarmer 7 | . 3 . . 4 . . Grunt 16 | . . 2 . 2 1 11 Duelist 1 | . . . . . . 1 Sentry 3 | . . . . . . 3 Hunter 2 | . . . . . 1 1 Best Kill Streak 6 | . 6 2 . 4 1 6 Combat Bots Only 5 | . 3 2 . 4 1 5 Max Kills in Single Turn 2 | . 2 1 . 2 1 1 Gunslinging . | . . . . . . . Exploded 2 | . 1 1 . 2 . . Melee 1 | . . . . . . 1 Uniques/NPCs Destroyed . | . . . . . . . Combat | -11 -10 -10 -10 -9 -8 -8 -------- Run | Yrd Mat Min Exi Min Mat Sto Hostile Shots Fired 232 | . 21 5 . 15 66 125 Missed 48 | . 5 2 . 2 18 21 Damage Taken 2650 | . 156 137 . 131 708 1518 Core 641 | . 29 52 . 10 165 385 Absorbed by Shields . | . . . . . . . Ignored by Resistances 12 | . . . . . . 12 Regen/Repaired (Parts) 49 | . 49 . . . . . Core Remaining (%) 81 | 100 . . . 63 . . Volleys Fired 85 | . 11 6 . 8 23 37 Largest 6 | . 1 1 . 2 3 6 Hottest 221 | . 30 30 . 80 108 221 Shots Fired 174 | . 11 6 . 15 56 86 Gun 139 | . . . . 15 56 68 Cannon 18 | . . . . . . 18 Launcher 17 | . 11 6 . . . . Special . | . . . . . . . Kinetic 136 | . . . . . 50 86 Thermal 6 | . . . . . 6 . Explosive 17 | . 11 6 . . . . Electromagnetic 15 | . . . . 15 . . Robot Hit Streak 12 | . 3 6 . 6 10 12 Robot Miss Streak 4 | . 1 . . 2 4 4 Penetration Max . | . . . . . . . Secondary Targets 2 | . . . . 2 . . Max Gunslinging Chain 1 | . . . . 1 . . Shots Hit Robots 157 | . 6 6 . 10 37 98 Core Hits 67 | . 10 5 . 8 20 24 Critical Kills . | . . . . . . . Critical Parts Destroyed 11 | . . . . . . 11 Critical Strikes 11 | . . . . . . 11 Destroy 1 | . . . . . . 1 Smash 10 | . . . . . . 10 Melee Attacks 55 | . . . . . . 55 Impact 55 | . . . . . . 55 Slashing . | . . . . . . . Piercing . | . . . . . . . Sneak Attacks 5 | . . . . . . 5 Combat Hostiles . | . . . . . . . Follow-up Attacks 1 | . . . . . . 1 Damage Inflicted 3475 | . 415 237 . 203 375 2245 Guns 1142 | . . . . 140 375 627 Cannons 138 | . . . . . . 138 Explosions 715 | . 415 237 . 63 . . Melee 1480 | . . . . . . 1480 Ramming . | . . . . . . . Kinetic 1066 | . . . . . 301 765 Thermal 137 | . . . . 63 74 . Explosive 652 | . 415 237 . . . . Electromagnetic 140 | . . . . 140 . . Impact 1480 | . . . . . . 1480 Slashing . | . . . . . . . Piercing . | . . . . . . . Highest Corruption . | . . . . . . . Average Corruption . | . . . . . . . Corruption Purged . | . . . . . . . Corruption Blocked . | . . . . . . . Overload Shots . | . . . . . . . Overflow Damage 510 | . 24 . . . . 486 Projectiles 2 | . . . . . . 2 Explosions 24 | . 24 . . . . . Melee 484 | . . . . . . 484 Knockbacks 4 | . . . . . . 4 Impact 2 | . . . . . . 2 Kinetic 2 | . . . . . . 2 Secondary . | . . . . . . . Self-Inflicted Damage 129 | . 26 96 . 7 . . Shots 9 | . 2 6 . 1 . . Rammed . | . . . . . . . Targets Rammed . | . . . . . . . Kicked . | . . . . . . . Crushed . | . . . . . . . Highest Temperature 504 | . . 4 . 108 257 504 Average Temperature 118 | . . 4 . 47 142 139 Received Heat Transfer 1071 | . . 27 . 36 207 801 Effects 5 | . . . . . . 5 Shutdowns 1 | . . . . . . 1 Energy Bleed 1 | . . . . . . 1 Interference 3 | . . . . . . 3 Siege Activations . | . . . . . . . Robots Corrupted . | . . . . . . . Combat Hostiles . | . . . . . . . Parts Fried 7 | . . . . . . 7 Impact Corruptions 21 | . . . . . . 21 Robots Melted . | . . . . . . . Combat Hostiles . | . . . . . . . Parts Melted . | . . . . . . . Heat Transferred 140 | . . . . 50 90 . Parts Sabotaged . | . . . . . . . Parts Stolen . | . . . . . . . Parts Stripped . | . . . . . . . Power Chain Reactions 1 | . . . . 1 . . Alert | -11 -10 -10 -10 -9 -8 -8 ------- Run | Yrd Mat Min Exi Min Mat Sto Peak Influence 493 | . 189 154 . 135 127 493 Initial 73 | . . 73 . . 52 49 Average 174 | . 97 151 . 107 99 298 Maximum Alert Level 2 | . . . . . . 2 Low Security (%) 70 | 100 100 100 . 100 100 20 Level 1 19 | . . . . . . 52 Level 2 9 | . . . . . . 27 Level 3 . | . . . . . . . Level 4 . | . . . . . . . Level 5 . | . . . . . . . High Security . | . . . . . . . Max Security . | . . . . . . . Squads Dispatched 10 | . 1 . . . 1 8 Investigation 2 | . 1 . . . 1 . Extermination . | . . . . . . . Reinforcement 2 | . . . . . . 2 Assault 2 | . . . . . . 2 Garrison 4 | . . . . . . 4 Intercept . | . . . . . . . Searches Triggered . | . . . . . . . Construction Impeded . | . . . . . . . Haulers Reinforced . | . . . . . . . Active Scanning Responses . | . . . . . . . Cargo Convoy Interrupts . | . . . . . . . Stealth | -11 -10 -10 -10 -9 -8 -8 --------- Run | Yrd Mat Min Exi Min Mat Sto Distress Signals 4 | . 1 . . . 1 2 Communications Jammed . | . . . . . . . Distress Signals . | . . . . . . . Times Spotted 53 | . 6 1 . 5 11 30 Peak Tracking Total 6 | . 5 1 . 3 5 6 Tactical Retreats 5 | . 1 . . . . 4 Traps | -11 -10 -10 -10 -9 -8 -8 ------- Run | Yrd Mat Min Exi Min Mat Sto Traps Triggered 2 | . 1 . . . 1 . Indirectly . | . . . . . . . Trap Hack Attempts . | . . . . . . . Triggered . | . . . . . . . Disarmed . | . . . . . . . Reprogrammed . | . . . . . . . Reused . | . . . . . . . Traps Extracted . | . . . . . . . Installed . | . . . . . . . Triggered . | . . . . . . . Machines | -11 -10 -10 -10 -9 -8 -8 ---------- Run | Yrd Mat Min Exi Min Mat Sto Machines Disabled 3 | . 2 . . . . 1 Max in Single Turn 1 | . 1 . . . . 1 Machines Repaired . | . . . . . . . Machines Dismantled . | . . . . . . . Machines Sabotaged . | . . . . . . . Overloaded Fab Kills . | . . . . . . . Hacking | -11 -10 -10 -10 -9 -8 -8 --------- Run | Yrd Mat Min Exi Min Mat Sto Machines Accessed 4 | . 4 . . . . . Terminals 3 | . 3 . . . . . Fabricators . | . . . . . . . Repair Stations 1 | . 1 . . . . . Recycling Units . | . . . . . . . Scanalyzers . | . . . . . . . Garrison Access . | . . . . . . . Total Hacks 11 | . 11 . . . . . Successful 3 | . 3 . . . . . Failed 8 | . 8 . . . . . Catastrophic 2 | . 2 . . . . . Database Lockouts . | . . . . . . . Manual 3 | . 3 . . . . . Terminals 9 | . 9 . . . . . Fabricators . | . . . . . . . Repair Stations 2 | . 2 . . . . . Recycling Units . | . . . . . . . Scanalyzers . | . . . . . . . Garrison Access . | . . . . . . . Terminal Hacks 1 | . 1 . . . . . Hauler Manifests 1 | . 1 . . . . . Fabricator Hacks . | . . . . . . . Repair Station Hacks 2 | . 2 . . . . . Scan Component 1 | . 1 . . . . . Repair 1 | . 1 . . . . . Recycling Unit Hacks . | . . . . . . . Scanalyzer . | . . . . . . . Garrison Access Hacks . | . . . . . . . Unauthorized Hacks . | . . . . . . . Terminals . | . . . . . . . Fabricators . | . . . . . . . Repair Stations . | . . . . . . . Recycling Units . | . . . . . . . Scanalyzers . | . . . . . . . Garrison Access . | . . . . . . . Data Cores Recovered . | . . . . . . . Used . | . . . . . . . Hacking Detections 3 | . 3 . . . . . Full Trace Events 3 | . 3 . . . . . Feedback Events . | . . . . . . . Feedback Blocked . | . . . . . . . Robot Schematics Acquired . | . . . . . . . Robots Built . | . . . . . . . Authchips . | . . . . . . . Time . | . . . . . . . Total Robot Build Rating . | . . . . . . . Part Schematics Acquired . | . . . . . . . Parts Built . | . . . . . . . Authchips . | . . . . . . . Time . | . . . . . . . Total Part Build Rating . | . . . . . . . Parts Repaired 1 | . 1 . . . . . Time 26 | . 26 . . . . . Parts Recycled . | . . . . . . . Recycled Matter . | . . . . . . . Retrieved Matter . | . . . . . . . Retrieved Components . | . . . . . . . Parts Scanalyzed . | . . . . . . . Part Schematics Acquired . | . . . . . . . Parts Damaged . | . . . . . . . Bothacking | -11 -10 -10 -10 -9 -8 -8 ------------ Run | Yrd Mat Min Exi Min Mat Sto Used RIF Installer . | . . . . . . . Robots Hacked . | . . . . . . . Non-combat . | . . . . . . . Combat . | . . . . . . . Robot Hacks Applied . | . . . . . . . Relay Couplers Released . | . . . . . . . Fabnet Peak Effective % . | . . . . . . . Robots Rewired . | . . . . . . . Allies Hacked . | . . . . . . . Hacks Repelled . | . . . . . . . Allies | -11 -10 -10 -10 -9 -8 -8 -------- Run | Yrd Mat Min Exi Min Mat Sto Total Allies 3 | . . . . 1 . 2 Largest Group 2 | . . . . 1 1 2 Highest-Rated Group 62 | . . . . 31 31 62 Highest-Rated Ally 31 | . . . . 31 31 31 Total Orders . | . . . . . . . Ally Attacks 25 | . . . . . 8 17 Total Damage 481 | . . . . . 167 314 Kills 3 | . . . . . 2 1 Allies Corrupted . | . . . . . . . Allies Melted . | . . . . . . . Intel | -11 -10 -10 -10 -9 -8 -8 ------- Run | Yrd Mat Min Exi Min Mat Sto Robot Analysis Total . | . . . . . . . Derelict Logs Recovered . | . . . . . . . Drone Launches . | . . . . . . . Drone Recoveries . | . . . . . . . Exploration | -11 -10 -10 -10 -9 -8 -8 ------------- Run | Yrd Mat Min Exi Min Mat Sto Turns Passed 1536 | 57 333 141 39 97 318 551 Spaces Moved 754 | 40 220 106 33 50 142 163 Core 20 | 9 . . . . . 11 Treads . | . . . . . . . Legs 637 | 31 220 106 33 50 142 55 Wheels 6 | . . . . . . 6 Hover . | . . . . . . . Flight 91 | . . . . . . 91 Fastest Speed 50 | 50 120 120 120 120 120 95 Average Speed 130 | 115 120 120 120 120 147 148 Slowest Speed 300 | 150 120 120 120 120 190 300 Overloaded Moves . | . . . . . . . Propulsion Burnouts . | . . . . . . . Robots Hopped . | . . . . . . . Cave-ins Triggered . | . . . . . . . Exploration Rate (%) 17 | 4 32 28 8 11 21 19 Regions Visited 6 Branch Regions 4 Pre-discovered Areas 1 | . . 1 . . . . Known Exits Taken . | . . . . . . . Unknown Exits Taken 6 | 1 1 1 1 1 1 . Scrap Searched 1 | . . . . 1 . . Spaces Dug . | . . . . . . . Terrain Destroyed 94 | . 51 38 . 5 . . Melee . | . . . . . . . Projectile . | . . . . . . . AOE 94 | . 51 38 . 5 . . Terrain Rammed . | . . . . . . . Walls Destroyed . | . . . . . . . Machines Disabled . | . . . . . . . Actions | -11 -10 -10 -10 -9 -8 -8 --------- Run | Yrd Mat Min Exi Min Mat Sto Total 1074 | 51 278 114 32 71 207 321 Wait 93 | . 35 . . 10 22 26 Move 748 | 39 219 105 32 49 141 163 Hop . | . . . . . . . Pick Up 40 | 7 4 . . 2 9 18 Fast Attach 4 | . . . . . . 4 Attach 31 | 5 4 2 . . 10 10 Detach 2 | . 2 . . . . . Swap 7 | . 2 . . 2 1 2 Drop 10 | . 1 1 . . 1 7 Fire 85 | . 11 6 . 8 23 37 Melee 54 | . . . . . . 54 Ram . | . . . . . . . Kick . | . . . . . . . Crush . | . . . . . . . Escape Stasis . | . . . . . . . Rewire . | . . . . . . . Trap . | . . . . . . . Miscellaneous . | . . . . . . . Route ------- -11/Scrapyard -10/Materials -10/Mines -10/Exiles -9/Mines -8/Materials -8/Storage History --------- Turn | Location | Event 9 | -11/Scrapyard | Discovered new exit (range 15) 58 | -11/Scrapyard | Entered Materials 305 | -10/Materials | Build established: Mutant 359 | -10/Materials | Repaired Grenade Launcher 372 | -10/Materials | Discovered new exit (range 14) 391 | -10/Materials | Entered Mines 394 | -10/Mines | Met a Derelict bent on vengeance 505 | -10/Mines | Learned location of Storage (-8) 526 | -10/Mines | Deemed a non-threat by the Exiles lab entrance 526 | -10/Mines | Discovered new exit (range 5) 532 | -10/Mines | Entered Exiles 555 | -10/Exiles | Discovered new exit (range 15) 571 | -10/Exiles | Entered Mines 654 | -9/Mines | Discovered new exit (range 10) 657 | -9/Mines | Received a Mining Laser from a helpful Derelict 668 | -9/Mines | Entered Materials 668 | -8/Materials | Accompanied by 1 ally 668 | -8/Materials | Evolved 4 slots: Weapon x4 923 | -8/Materials | Discovered new exit (range 6) 943 | -8/Materials | Lost 4 parts (1p2n1w) 986 | -8/Materials | Entered Storage 1078 | -8/Storage | Garrison activated, responded to threat 1157 | -8/Storage | Core integrity fell below 50% 1169 | -8/Storage | Lost 4 parts (1u3w) 1298 | -8/Storage | Core integrity fell below 20% 1322 | -8/Storage | Lost 5 parts (1p2n1u1w) 1455 | -8/Storage | Met a pair of Derelict thieves 1488 | -8/Storage | Garrison activated, responded to threat 1537 | -8/Storage | Destroyed by S-10 Pest with Light Assault Rifle Last Messages --------------- 01512_ K-01 Serf collects debris. 01515_ K-01 Serf cleans the Heavy Doors. 01515_ K-01 Serf collects debris. 01520_ Overheating: System interference. 01520_ Enh. Autogun temporarily disabled. 01520_ Assault Cannon temporarily disabled. 01520_ Dropped Lgt. Ion Engine. 01520_ Dropped Nuclear Core. 01521_ Acquired Enh. Autogun. 01522_ K-01 Serf destroyed. 01522_ K-01 Serf collects debris. 01523_ Overheating: Energy bleed (-50). 01525_ K-01 Serf collects debris. 01527_ Acquired 68 matter. 01529_ K-01 Serf collects debris. 01533_ Destroyed Flight Unit. 01533_ S-10 Pest knocked back. 01533_ K-01 Serf collects debris. 01535_ S-10 Pest knocked back. 01536_ K-01 Serf collects debris. Map ----- +----------------------------------------------------+ | ?????????????????????????????? | | ?????????????????????????????? | | ?????????#+##????????????????? | | ?????????# ?????????????????? | | ?????????# ?????????????????? | | ?????????# ?????????????????? | | ?????????+ ?????????????????? | | ?????????# #?????????????????? | | ?????????# #?????????????????? | | ?????????# #?????????????????? | | ?????????# #?????????????????? | | ????????## ###???????????????? | | ????????#T #???????????????? | | ??????#### +???????????????? | | ??????" # #???????????????? | | ??????" # #???????????????? | | ??????" + #???????????????? | | ??????#T## #???????????????? | | ??????##?# #???????????????? | | ?????????# #???????????????? | | ?######??# #???????????????? | | ?# #### ###########?????? | | ?# %%#T##% #?????? | | ?# !["sg;% +?????? | | ?# *=ss= # #?????? | | ?#*/k@" # #####" "# #?????? | | ?# *=!# # #?????G"# ??????? | | ?######### #???????? #?????? | | ?????????# ######### #?????? | | ?????????# ## # #?????? | | ?????????# ## [+ #?????? | | ########## ## ! # #?????? | | # # ## # #?????? | | # = # #? ] !# #?????? | | # * # #???! # ##????? | | # ** ^ # ######+## T#????? | | # + % !#?????? | | # # ###### **#?????? | | # # #????# %*=####### | | # "T" # #????+ !%%%% % | | # # #????####+## | | ########## #?????#*[%=# | | ?????????#####?????##"### | | ????????????????????????# # | | ????????????????????????# # | | ????????????????????????# ^ # | | ?????????????????????????##### | | ?????????????????????????????? | | ?????????????????????????????? | | ?????????????????????????????? | +----------------------------------------------------+ Best States ------------- Heat Dissipation 31 Energy Generation 14 Energy Capacity 250 Matter Stores 300 Matter Capacity 300 Sight Range 16 Terrain Scan Density 10 ECM Strength 1 Additional Mass Support 6 Armor Coverage 150 Resistance: TH 10 Evasion (%) 55 Item Schematics ----------------- None Robot Schematics ------------------ None Fabricated ------------ Nothing Alien Tech Used ----------------- None Achievements -------------- Part-time Mechanic Shopping List Tourist Challenges ------------ None Game ------ Seed AuthchipAdvancedSource Manual? 0 Play Time 00:29:16 Cumulative 6.0 hours Start 2024.04.07 @ 22:07:14 End 2024.04.07 @ 22:34:54 Sessions 1 Manual Loads 0 Difficulty Rogue Special Mode None Game No. 6 Rogue 6 Adventurer 0 Explorer 0 Win Type - Total 0 Types 0/0/0/0/0/0/0/0/0 Lore% 2 Gallery% 7 Achievement% 8 Wizard Run 0 Options --------- Layout 1 ASCII 0 Keyboard 0 Movement Mouse Keybinds 0 Fullscreen 2 Font 20/SmallcapsGlow Map View 32x21 Zoom Use 81% Tactical HUD 1 Map Filters NONE Filters NONE Steam 1 RUN: b9eb416a-b3d6-4603-9936-76fd86244bb3